[Event "*** Titled Tuesday Blitz"]
[Site "Chess.com"]
[Date "2019.05.07"]
[Round "4"]
[White "Chessialist"]
[Black "Msb2"]
[Result "0-1"]
[WhiteElo "2568"]
[BlackElo "2955"]
[TimeControl "180+2"]
[EndTime "13:52:20 PDT"]
[Termination "Msb2 won by resignation"]

1. e4 {[%clk 0:03:01.9]} 1... e6 {[%clk 0:03:01.3]} 2. Qe2 {[%clk 0:03:01.6]}
2... d5 {[%clk 0:03:03.2]} 3. d3 {[%clk 0:03:02.6]} 3... Nc6 {[%clk 0:03:03.9]}
4. Nf3 {[%clk 0:03:03.9]} 4... e5 {[%clk 0:03:05.5]} 5. exd5 {[%clk 0:03:02.2]}
5... Qxd5 {[%clk 0:03:07.4]} 6. Nc3 {[%clk 0:03:03.6]} 6... Qa5 {[%clk
0:03:07.6]} 7. Bd2 {[%clk 0:03:04.5]} 7... Bg4 {[%clk 0:02:54.8]} 8. h3 {[%clk
0:03:02.6]} 8... Bh5 {[%clk 0:02:53.9]} 9. g4 {[%clk 0:02:57.5]} 9... Bg6 {[%clk
0:02:54.7]} 10. Bg2 {[%clk 0:02:54]} 10... O-O-O {[%clk 0:02:55.9]} 11. O-O
{[%clk 0:02:51]} 11... h5 {[%clk 0:02:56.7]} 12. g5 {[%clk 0:02:51.8]} 12...
Nge7 {[%clk 0:02:56.1]} 13. a3 {[%clk 0:02:52.1]} 13... Qc5 {[%clk 0:02:53.6]}
14. b4 {[%clk 0:02:52.1]} 14... Qd6 {[%clk 0:02:55]} 15. Nb5 {[%clk 0:02:50.9]}
15... Qe6 {[%clk 0:02:51]} 16. Rfe1 {[%clk 0:02:48.2]} 16... a6 {[%clk
0:02:44.3]} 17. Nc3 {[%clk 0:02:49]} 17... f6 {[%clk 0:02:43.5]} 18. Ne4 {[%clk
0:02:47.4]} 18... Nf5 {[%clk 0:02:42.6]} 19. c3 {[%clk 0:02:35.7]} 19... h4
{[%clk 0:02:43.6]} 20. a4 {[%clk 0:02:30.9]} 20... Be7 {[%clk 0:02:31.2]} 21. b5
{[%clk 0:02:31.3]} 21... Na5 {[%clk 0:02:32.3]} 22. bxa6 {[%clk 0:02:32]} 22...
Qxa6 {[%clk 0:02:31.7]} 23. c4 {[%clk 0:02:25.2]} 23... Nb3 {[%clk 0:02:32]} 24.
Rab1 {[%clk 0:02:23.9]} 24... Nbd4 {[%clk 0:02:32.3]} 25. Nxd4 {[%clk
0:02:23.9]} 25... Nxd4 {[%clk 0:02:34.2]} 26. Qd1 {[%clk 0:02:17]} 26... c6
{[%clk 0:02:28]} 27. gxf6 {[%clk 0:02:06.6]} 27... gxf6 {[%clk 0:02:28.3]} 28.
Qg4+ {[%clk 0:02:05.1]} 28... Bf5 {[%clk 0:02:29.4]} 29. Qg7 {[%clk 0:01:48.5]}
29... Rh7 {[%clk 0:02:28.8]} 30. Nd6+ {[%clk 0:01:30.8]} 30... Rxd6 {[%clk
0:02:27]} 31. Qg8+ {[%clk 0:01:29.6]} 31... Rd8 {[%clk 0:02:27.2]} 0-1

[Event "*** Titled Tuesday Blitz"]
[Site "Chess.com"]
[Date "2019.05.07"]
[Round "4"]
[White "korason34"]
[Black "DoHoChess"]
[Result "1-0"]
[WhiteElo "2590"]
[BlackElo "2532"]
[TimeControl "180+2"]
[EndTime "13:53:31 PDT"]
[Termination "korason34 won by resignation"]

1. e4 {[%clk 0:03:01.9]} 1... c5 {[%clk 0:02:58.1]} 2. Nf3 {[%clk 0:02:57.3]}
2... e6 {[%clk 0:02:58.8]} 3. d4 {[%clk 0:02:57.9]} 3... cxd4 {[%clk 0:03:00.2]}
4. Nxd4 {[%clk 0:02:59.8]} 4... Nc6 {[%clk 0:03:01]} 5. Nc3 {[%clk 0:02:58.4]}
5... Qc7 {[%clk 0:03:02]} 6. g3 {[%clk 0:02:57.8]} 6... a6 {[%clk 0:03:03.1]} 7.
Bg2 {[%clk 0:02:58.8]} 7... h5 {[%clk 0:03:04.7]} 8. O-O {[%clk 0:02:58.1]} 8...
Nf6 {[%clk 0:03:05.8]} 9. h3 {[%clk 0:02:51.1]} 9... Bc5 {[%clk 0:02:57.4]} 10.
Nxc6 {[%clk 0:02:51.7]} 10... dxc6 {[%clk 0:02:43.8]} 11. e5 {[%clk 0:02:46.8]}
11... Qxe5 {[%clk 0:01:56.8]} 12. Bf4 {[%clk 0:02:44.5]} 12... Qd4 {[%clk
0:01:51.5]} 13. Qe2 {[%clk 0:02:37.1]} 13... Qd8 {[%clk 0:01:51.8]} 14. Rad1
{[%clk 0:02:09.3]} 14... Bd7 {[%clk 0:01:49.8]} 15. Be5 {[%clk 0:02:03.6]} 15...
Qe7 {[%clk 0:01:40.2]} 16. Na4 {[%clk 0:01:54]} 16... Nd5 {[%clk 0:01:09.5]} 17.
c4 {[%clk 0:01:49.4]} 17... Nf6 {[%clk 0:00:41]} 18. Rd3 {[%clk 0:01:26.3]}
18... Kf8 {[%clk 0:00:32.5]} 19. Nxc5 {[%clk 0:01:21.7]} 19... Qxc5 {[%clk
0:00:31.3]} 20. Bd6+ {[%clk 0:01:22.3]} 1-0

[Event "*** Titled Tuesday Blitz"]
[Site "Chess.com"]
[Date "2019.05.07"]
[Round "4"]
[White "gemarin"]
[Black "MateusViageiro"]
[Result "1-0"]
[WhiteElo "2096"]
[BlackElo "2166"]
[TimeControl "180+2"]
[EndTime "13:53:52 PDT"]
[Termination "gemarin won on time"]

1. d4 {[%clk 0:03:01.9]} 1... Nf6 {[%clk 0:02:53.3]} 2. c4 {[%clk 0:03:02.4]}
2... e6 {[%clk 0:02:52.4]} 3. Nf3 {[%clk 0:03:02.2]} 3... Bb4+ {[%clk
0:02:52.3]} 4. Bd2 {[%clk 0:03:01.6]} 4... Be7 {[%clk 0:02:52.6]} 5. Nc3 {[%clk
0:02:59.7]} 5... d5 {[%clk 0:02:53.5]} 6. Bg5 {[%clk 0:02:56.7]} 6... O-O {[%clk
0:02:53.7]} 7. e3 {[%clk 0:02:57.5]} 7... Nbd7 {[%clk 0:02:54.5]} 8. Be2 {[%clk
0:02:58]} 8... b6 {[%clk 0:02:55.5]} 9. cxd5 {[%clk 0:02:49.7]} 9... exd5 {[%clk
0:02:54.9]} 10. O-O {[%clk 0:02:42.4]} 10... Bb7 {[%clk 0:02:55.5]} 11. Qa4
{[%clk 0:02:19.6]} 11... a6 {[%clk 0:02:56]} 12. b4 {[%clk 0:02:19.3]} 12... c5
{[%clk 0:02:50.1]} 13. bxc5 {[%clk 0:02:18.8]} 13... bxc5 {[%clk 0:02:50.6]} 14.
Rab1 {[%clk 0:02:19.2]} 14... Qc8 {[%clk 0:02:50]} 15. Rfc1 {[%clk 0:02:07]}
15... Bc6 {[%clk 0:02:49.7]} 16. Qa3 {[%clk 0:02:01.7]} 16... Qe8 {[%clk
0:02:20]} 17. dxc5 {[%clk 0:01:55.5]} 17... Bxc5 {[%clk 0:00:56.6]} 18. Qa5
{[%clk 0:01:50.7]} 18... Qd8 {[%clk 0:00:28.8]} 19. Qxd8 {[%clk 0:01:40.1]}
19... Rfxd8 {[%clk 0:00:27.4]} 20. Bxf6 {[%clk 0:01:39.2]} 1-0

[Event "*** Titled Tuesday Blitz"]
[Site "Chess.com"]
[Date "2019.05.07"]
[Round "4"]
[White "mjray79"]
[Black "MathiasWomacka"]
[Result "0-1"]
[WhiteElo "2123"]
[BlackElo "2234"]
[TimeControl "180+2"]
[EndTime "13:53:52 PDT"]
[Termination "MathiasWomacka won by checkmate"]

1. d4 {[%clk 0:03:01.9]} 1... Nf6 {[%clk 0:03:00.6]} 2. c4 {[%clk 0:03:02.4]}
2... e6 {[%clk 0:03:01.6]} 3. Nc3 {[%clk 0:03:02.7]} 3... Bb4 {[%clk 0:03:02.2]}
4. e3 {[%clk 0:03:04.1]} 4... c5 {[%clk 0:02:59.4]} 5. Ne2 {[%clk 0:03:02.2]}
5... cxd4 {[%clk 0:02:56.7]} 6. exd4 {[%clk 0:03:03]} 6... O-O {[%clk
0:02:58.1]} 7. a3 {[%clk 0:03:03.2]} 7... Be7 {[%clk 0:02:58.9]} 8. Nf4 {[%clk
0:03:03]} 8... Re8 {[%clk 0:02:59.3]} 9. Be2 {[%clk 0:03:03]} 9... d5 {[%clk
0:02:53.9]} 10. cxd5 {[%clk 0:03:03.1]} 10... Nxd5 {[%clk 0:02:54.8]} 11. Nfxd5
{[%clk 0:03:03]} 11... exd5 {[%clk 0:02:56.7]} 12. O-O {[%clk 0:03:03.7]} 12...
Nc6 {[%clk 0:02:52.8]} 13. Bf3 {[%clk 0:03:03.8]} 13... Be6 {[%clk 0:02:50.4]}
14. Be3 {[%clk 0:03:01.8]} 14... Bg5 {[%clk 0:02:46.5]} 15. Qb3 {[%clk
0:02:52.3]} 15... Na5 {[%clk 0:02:30.7]} 16. Qb5 {[%clk 0:02:37.6]} 16... Bxe3
{[%clk 0:02:28.6]} 17. fxe3 {[%clk 0:02:37.6]} 17... a6 {[%clk 0:02:29.3]} 18.
Qa4 {[%clk 0:02:34.5]} 18... Nc4 {[%clk 0:02:25.6]} 19. Rae1 {[%clk 0:02:27.9]}
19... Nxb2 {[%clk 0:02:24.2]} 20. Qb3 {[%clk 0:02:28.1]} 20... Nc4 {[%clk
0:02:24.5]} 21. Qxb7 {[%clk 0:02:28.3]} 21... Nxa3 {[%clk 0:02:15.4]} 22. Nxd5
{[%clk 0:02:26]} 22... Qd6 {[%clk 0:02:03.1]} 23. Nc7 {[%clk 0:02:20.5]} 23...
Reb8 {[%clk 0:01:49.7]} 24. Qxa8 {[%clk 0:02:14.9]} 24... Rxa8 {[%clk
0:01:50.5]} 25. Nxa8 {[%clk 0:02:12]} 25... Nc4 {[%clk 0:01:42.7]} 26. Kf2
{[%clk 0:01:41.2]} 26... Nd2 {[%clk 0:01:18.6]} 27. d5 {[%clk 0:01:24.5]} 27...
Nxf3 {[%clk 0:01:13.4]} 28. gxf3 {[%clk 0:01:06]} 28... Qxh2# {[%clk 0:01:09.8]}
0-1

[Event "*** Titled Tuesday Blitz"]
[Site "Chess.com"]
[Date "2019.05.07"]
[Round "4"]
[White "rasmussvane"]
[Black "Iball95"]
[Result "1-0"]
[WhiteElo "2802"]
[BlackElo "2602"]
[TimeControl "180+2"]
[EndTime "13:53:59 PDT"]
[Termination "rasmussvane won by checkmate"]

1. Nf3 {[%clk 0:03:01.9]} 1... Nc6 {[%clk 0:03:01.9]} 2. d4 {[%clk 0:03:02.3]}
2... d6 {[%clk 0:03:00.3]} 3. e4 {[%clk 0:02:59.6]} 3... Nf6 {[%clk 0:03:00]} 4.
Nc3 {[%clk 0:02:59.4]} 4... g6 {[%clk 0:03:00.1]} 5. Be3 {[%clk 0:02:58.7]} 5...
Bg7 {[%clk 0:03:00.2]} 6. Qd2 {[%clk 0:03:00.1]} 6... Ng4 {[%clk 0:03:01.4]} 7.
Bg5 {[%clk 0:03:00.4]} 7... h6 {[%clk 0:03:02.1]} 8. Bh4 {[%clk 0:03:01.7]} 8...
g5 {[%clk 0:03:01.5]} 9. Bg3 {[%clk 0:03:02.9]} 9... e5 {[%clk 0:03:01.9]} 10.
d5 {[%clk 0:02:59.5]} 10... Ne7 {[%clk 0:02:57.3]} 11. h4 {[%clk 0:03:00.5]}
11... gxh4 {[%clk 0:02:43.9]} 12. Nxh4 {[%clk 0:03:02.4]} 12... Ng6 {[%clk
0:02:38.3]} 13. Be2 {[%clk 0:02:59.8]} 13... Nxh4 {[%clk 0:02:35.3]} 14. Rxh4
{[%clk 0:02:59.9]} 14... Bf6 {[%clk 0:02:37.2]} 15. Rxg4 {[%clk 0:02:59.8]}
15... Bxg4 {[%clk 0:02:34.6]} 16. Bxg4 {[%clk 0:03:01.7]} 16... h5 {[%clk
0:02:36.2]} 17. Bf5 {[%clk 0:03:01.4]} 17... h4 {[%clk 0:02:37.5]} 18. Bh2
{[%clk 0:03:02.4]} 18... Bg5 {[%clk 0:02:38.9]} 19. Qe2 {[%clk 0:03:01.4]} 19...
a6 {[%clk 0:02:39.7]} 20. Rd1 {[%clk 0:02:56.6]} 20... Qf6 {[%clk 0:02:40.5]}
21. Rd3 {[%clk 0:02:55.4]} 21... Ke7 {[%clk 0:02:40.7]} 22. Rf3 {[%clk
0:02:54.6]} 22... Qh6 {[%clk 0:02:41.7]} 23. Qc4 {[%clk 0:02:54.4]} 23... Kd8
{[%clk 0:02:40.3]} 24. Qa4 {[%clk 0:02:52.7]} 24... Bd2+ {[%clk 0:02:32.4]} 25.
Kf1 {[%clk 0:02:18.1]} 25... b5 {[%clk 0:02:20.7]} 26. Nxb5 {[%clk 0:02:18.8]}
26... Ba5 {[%clk 0:02:04.7]} 27. Nc3 {[%clk 0:02:10.5]} 27... Qc1+ {[%clk
0:02:00.4]} 28. Ke2 {[%clk 0:02:10.7]} 28... Ke7 {[%clk 0:02:01.6]} 29. Qxa5
{[%clk 0:01:31]} 29... Qxc2+ {[%clk 0:02:01.8]} 30. Ke1 {[%clk 0:01:31.7]} 30...
Qc1+ {[%clk 0:01:52.9]} 31. Nd1 {[%clk 0:01:32.4]} 31... h3 {[%clk 0:01:50.9]}
32. Bxh3 {[%clk 0:01:29.2]} 32... Rab8 {[%clk 0:01:50.1]} 33. Rc3 {[%clk
0:01:23.9]} 33... Rxh3 {[%clk 0:01:50.9]} 34. Rxc1 {[%clk 0:01:19]} 34... Rxh2
{[%clk 0:01:51.8]} 35. Qxc7+ {[%clk 0:01:19.9]} 35... Kf6 {[%clk 0:01:52.5]} 36.
Qxd6+ {[%clk 0:01:21.3]} 36... Kg5 {[%clk 0:01:53.1]} 37. Qxe5+ {[%clk
0:01:22.4]} 37... Kg4 {[%clk 0:01:55]} 38. Qg3+ {[%clk 0:01:16.5]} 38... Kh5
{[%clk 0:01:55.2]} 39. Qxh2+ {[%clk 0:01:17.7]} 39... Kg4 {[%clk 0:01:57.1]} 40.
Ne3+ {[%clk 0:01:15.7]} 40... Kg5 {[%clk 0:01:57.3]} 41. Qe5+ {[%clk 0:01:12.2]}
41... f5 {[%clk 0:01:57.9]} 42. Qxf5+ {[%clk 0:01:04.1]} 42... Kh4 {[%clk
0:01:58.6]} 43. Qg4# {[%clk 0:01:04.9]} 1-0

[Event "*** Titled Tuesday Blitz"]
[Site "Chess.com"]
[Date "2019.05.07"]
[Round "4"]
[White "Szparu"]
[Black "monalize"]
[Result "1-0"]
[WhiteElo "2514"]
[BlackElo "2329"]
[TimeControl "180+2"]
[EndTime "13:53:59 PDT"]
[Termination "Szparu won by resignation"]

1. e4 {[%clk 0:03:01.9]} 1... c5 {[%clk 0:02:59.2]} 2. Nf3 {[%clk 0:03:01.5]}
2... d6 {[%clk 0:03:00.1]} 3. d4 {[%clk 0:03:02.1]} 3... cxd4 {[%clk 0:03:00.9]}
4. Qxd4 {[%clk 0:03:04]} 4... Nc6 {[%clk 0:02:59]} 5. Bb5 {[%clk 0:03:05]} 5...
Bd7 {[%clk 0:02:59.3]} 6. Bxc6 {[%clk 0:03:06.3]} 6... Bxc6 {[%clk 0:02:59.7]}
7. Nc3 {[%clk 0:03:07.9]} 7... e6 {[%clk 0:03:00.2]} 8. Bg5 {[%clk 0:03:07.8]}
8... Qa5 {[%clk 0:02:59.9]} 9. O-O-O {[%clk 0:03:06.5]} 9... h6 {[%clk
0:02:59.9]} 10. Bd2 {[%clk 0:03:07.3]} 10... Qc7 {[%clk 0:02:59.1]} 11. Qd3
{[%clk 0:03:05.6]} 11... Nf6 {[%clk 0:02:58.6]} 12. Nd4 {[%clk 0:03:06.3]} 12...
Be7 {[%clk 0:02:59.4]} 13. f4 {[%clk 0:03:02.2]} 13... a6 {[%clk 0:02:59.5]} 14.
g4 {[%clk 0:02:37]} 14... Nxg4 {[%clk 0:02:51.1]} 15. Qg3 {[%clk 0:02:37.1]}
15... Nf6 {[%clk 0:02:39]} 16. Rde1 {[%clk 0:02:33.8]} 16... g6 {[%clk
0:02:35.3]} 17. h4 {[%clk 0:02:22.9]} 17... h5 {[%clk 0:02:31.2]} 18. Rhf1
{[%clk 0:02:23.4]} 18... O-O-O {[%clk 0:02:29.2]} 19. f5 {[%clk 0:02:24.7]}
19... gxf5 {[%clk 0:02:24.9]} 20. exf5 {[%clk 0:02:24.9]} 20... e5 {[%clk
0:02:25.4]} 21. Nxc6 {[%clk 0:02:26.3]} 21... Qxc6 {[%clk 0:02:25.8]} 22. Bg5
{[%clk 0:02:27.3]} 22... Ng8 {[%clk 0:02:11.1]} 23. f6 {[%clk 0:02:24.5]} 23...
Bf8 {[%clk 0:02:10.1]} 24. Rd1 {[%clk 0:02:15.3]} 24... Nh6 {[%clk 0:02:03.6]}
25. Nd5 {[%clk 0:02:14.6]} 25... Kb8 {[%clk 0:02:03.7]} 26. Rf3 {[%clk
0:02:13.5]} 26... Ng4 {[%clk 0:01:59.9]} 27. Rc3 {[%clk 0:02:12.4]} 27... Qd7
{[%clk 0:01:59.9]} 28. Rc7 {[%clk 0:02:05.9]} 28... Qb5 {[%clk 0:01:57.7]} 29.
Rxf7 {[%clk 0:02:01.2]} 29... Bh6 {[%clk 0:01:52.9]} 30. Kb1 {[%clk 0:01:49]}
30... Rc8 {[%clk 0:01:42.7]} 31. Qb3 {[%clk 0:01:46.2]} 31... Nf2 {[%clk
0:01:36.1]} 32. Qxb5 {[%clk 0:01:44.7]} 32... axb5 {[%clk 0:01:36]} 33. Re1
{[%clk 0:01:42]} 33... Rcg8 {[%clk 0:01:32.3]} 34. Ne7 {[%clk 0:01:37.7]} 34...
Rd8 {[%clk 0:01:27.2]} 35. Ng6 {[%clk 0:01:35.1]} 35... Bxg5 {[%clk 0:01:24.8]}
36. Nxh8 {[%clk 0:01:35.9]} 36... Bxh4 {[%clk 0:01:25.6]} 37. Ng6 {[%clk
0:01:35.8]} 37... Bg3 {[%clk 0:01:26.2]} 38. Rh7 {[%clk 0:01:31.4]} 38... Ne4
{[%clk 0:01:21.5]} 39. Rxe4 {[%clk 0:01:29.9]} 1-0

[Event "*** Titled Tuesday Blitz"]
[Site "Chess.com"]
[Date "2019.05.07"]
[Round "4"]
[White "MatthewG-p4p"]
[Black "Indianlad"]
[Result "0-1"]
[WhiteElo "2695"]
[BlackElo "2902"]
[TimeControl "180+2"]
[EndTime "13:54:05 PDT"]
[Termination "Indianlad won by resignation"]

1. c4 {[%clk 0:03:01.2]} 1... e5 {[%clk 0:03:00.6]} 2. g3 {[%clk 0:03:01.7]}
2... Nc6 {[%clk 0:03:01.7]} 3. Bg2 {[%clk 0:03:03]} 3... Bc5 {[%clk 0:03:03]} 4.
Nc3 {[%clk 0:03:04.3]} 4... d6 {[%clk 0:03:04.4]} 5. d3 {[%clk 0:03:05.3]} 5...
a6 {[%clk 0:03:05.2]} 6. e3 {[%clk 0:03:06.2]} 6... Ba7 {[%clk 0:03:06.6]} 7.
Nge2 {[%clk 0:03:07.6]} 7... Nf6 {[%clk 0:03:07.7]} 8. O-O {[%clk 0:03:09]} 8...
h5 {[%clk 0:03:08.6]} 9. h4 {[%clk 0:03:08.2]} 9... Ng4 {[%clk 0:03:06.8]} 10.
d4 {[%clk 0:03:06.5]} 10... g5 {[%clk 0:03:07]} 11. f3 {[%clk 0:02:35.2]} 11...
Nh6 {[%clk 0:03:00]} 12. hxg5 {[%clk 0:02:19.9]} 12... Qxg5 {[%clk 0:03:01.9]}
13. f4 {[%clk 0:02:18.8]} 13... Qg7 {[%clk 0:02:58.4]} 14. fxe5 {[%clk
0:02:05.8]} 14... dxe5 {[%clk 0:02:58.6]} 15. Nd5 {[%clk 0:02:06.1]} 15... f5
{[%clk 0:02:59.5]} 16. dxe5 {[%clk 0:01:49.6]} 16... Nxe5 {[%clk 0:02:55.8]} 17.
Nd4 {[%clk 0:01:47.6]} 17... c6 {[%clk 0:02:24.8]} 18. Nf4 {[%clk 0:01:38.6]}
18... Qxg3 {[%clk 0:02:25.4]} 19. Nxh5 {[%clk 0:01:20.9]} 19... Qh4 {[%clk
0:02:13.6]} 20. Rf4 {[%clk 0:00:37.7]} 20... Qg5 {[%clk 0:01:43.8]} 21. e4
{[%clk 0:00:24.3]} 21... Neg4 {[%clk 0:01:35.1]} 22. Rxf5 {[%clk 0:00:23.1]}
22... Nxf5 {[%clk 0:01:36.1]} 23. Bxg5 {[%clk 0:00:21.5]} 23... Bxd4+ {[%clk
0:01:37.6]} 24. Qxd4 {[%clk 0:00:22.3]} 24... Nxd4 {[%clk 0:01:38.5]} 25. Nf6+
{[%clk 0:00:23.4]} 25... Nxf6 {[%clk 0:01:37.7]} 26. Bxf6 {[%clk 0:00:25.3]}
26... Rg8 {[%clk 0:01:31]} 27. Bxd4 {[%clk 0:00:23]} 27... Bh3 {[%clk 0:01:31]}
0-1

[Event "*** Titled Tuesday Blitz"]
[Site "Chess.com"]
[Date "2019.05.07"]
[Round "4"]
[White "volcanoexplorer"]
[Black "pedromartinez91"]
[Result "0-1"]
[WhiteElo "2613"]
[BlackElo "2520"]
[TimeControl "180+2"]
[EndTime "13:54:05 PDT"]
[Termination "pedromartinez91 won on time"]

1. e4 {[%clk 0:03:01.9]} 1... c5 {[%clk 0:02:59.5]} 2. Nf3 {[%clk 0:03:03.1]}
2... Nc6 {[%clk 0:03:00.2]} 3. d4 {[%clk 0:03:04.3]} 3... cxd4 {[%clk
0:03:02.1]} 4. Nxd4 {[%clk 0:03:05.6]} 4... g6 {[%clk 0:03:03.6]} 5. Nc3 {[%clk
0:03:06.9]} 5... Bg7 {[%clk 0:03:04.2]} 6. Be3 {[%clk 0:03:08.5]} 6... Nf6
{[%clk 0:03:05.4]} 7. Bc4 {[%clk 0:03:09.1]} 7... O-O {[%clk 0:03:06.5]} 8. Bb3
{[%clk 0:03:10.7]} 8... a5 {[%clk 0:03:07.9]} 9. O-O {[%clk 0:03:11.7]} 9...
Nxd4 {[%clk 0:03:04.8]} 10. Bxd4 {[%clk 0:03:12.3]} 10... d6 {[%clk 0:03:06.7]}
11. h3 {[%clk 0:03:03.7]} 11... Bd7 {[%clk 0:03:06.2]} 12. Re1 {[%clk
0:03:04.2]} 12... a4 {[%clk 0:03:05.2]} 13. Bc4 {[%clk 0:03:02.8]} 13... Rc8
{[%clk 0:02:52.2]} 14. Bf1 {[%clk 0:02:38.4]} 14... a3 {[%clk 0:02:43.8]} 15.
Rb1 {[%clk 0:02:23.5]} 15... axb2 {[%clk 0:02:42.6]} 16. Qd3 {[%clk 0:01:21.8]}
16... Qa5 {[%clk 0:02:31.8]} 17. e5 {[%clk 0:01:06.4]} 17... dxe5 {[%clk
0:02:18.6]} 18. Rxe5 {[%clk 0:01:03.8]} 18... Qb4 {[%clk 0:02:19.4]} 19. Nd1
{[%clk 0:00:45.4]} 19... Bf5 {[%clk 0:02:11.6]} 20. Rxf5 {[%clk 0:00:36.9]}
20... gxf5 {[%clk 0:02:06.8]} 21. Rxb2 {[%clk 0:00:38.2]} 21... Qd6 {[%clk
0:02:05.6]} 22. Ne3 {[%clk 0:00:27.8]} 22... e6 {[%clk 0:02:02.5]} 23. Rxb7
{[%clk 0:00:20.8]} 23... Rfd8 {[%clk 0:02:00.4]} 24. c3 {[%clk 0:00:14]} 24...
f4 {[%clk 0:02:01]} 25. Bxf6 {[%clk 0:00:07.2]} 25... Qxd3 {[%clk 0:01:49.5]}
26. Bxd3 {[%clk 0:00:07]} 26... Rxd3 {[%clk 0:01:45.1]} 27. Bxg7 {[%clk
0:00:06]} 27... fxe3 {[%clk 0:01:46.2]} 0-1

[Event "*** Titled Tuesday Blitz"]
[Site "Chess.com"]
[Date "2019.05.07"]
[Round "4"]
[White "DanielNaroditsky"]
[Black "Casper_Schoppen"]
[Result "1-0"]
[WhiteElo "3123"]
[BlackElo "2577"]
[TimeControl "180+2"]
[EndTime "13:54:17 PDT"]
[Termination "DanielNaroditsky won by resignation"]

1. d4 {[%clk 0:03:01.9]} 1... Nf6 {[%clk 0:02:59.9]} 2. Nc3 {[%clk 0:03:03.6]}
2... d5 {[%clk 0:03:00.3]} 3. Bf4 {[%clk 0:03:05.4]} 3... e6 {[%clk 0:02:58]} 4.
e3 {[%clk 0:03:06.3]} 4... a6 {[%clk 0:02:58.7]} 5. g4 {[%clk 0:03:07.5]} 5...
c5 {[%clk 0:02:54.2]} 6. g5 {[%clk 0:03:08.6]} 6... Nfd7 {[%clk 0:02:55.1]} 7.
Nf3 {[%clk 0:03:09.3]} 7... Nc6 {[%clk 0:02:56]} 8. h4 {[%clk 0:03:10.6]} 8...
b5 {[%clk 0:02:43.2]} 9. e4 {[%clk 0:03:11.9]} 9... Nxd4 {[%clk 0:01:59.8]} 10.
Nxd4 {[%clk 0:03:02]} 10... cxd4 {[%clk 0:02:00]} 11. Qxd4 {[%clk 0:03:03.9]}
11... Bb7 {[%clk 0:01:57.2]} 12. exd5 {[%clk 0:02:58.4]} 12... e5 {[%clk
0:01:48.8]} 13. Bxe5 {[%clk 0:02:29.3]} 13... Bc5 {[%clk 0:01:48.7]} 14. Qe4
{[%clk 0:02:19.7]} 14... O-O {[%clk 0:01:08.7]} 15. Bd3 {[%clk 0:02:20.8]} 15...
g6 {[%clk 0:01:10.2]} 16. O-O-O {[%clk 0:02:21.7]} 16... Nxe5 {[%clk 0:01:09.9]}
17. Qxe5 {[%clk 0:02:22.9]} 17... Re8 {[%clk 0:01:05.1]} 18. Qf4 {[%clk
0:02:22.5]} 18... Bd6 {[%clk 0:01:04.3]} 19. Qg4 {[%clk 0:02:12.7]} 19... Bc8
{[%clk 0:01:00.2]} 20. Qg2 {[%clk 0:02:08.6]} 20... Be5 {[%clk 0:00:51.4]} 21.
h5 {[%clk 0:02:09.5]} 21... Bf4+ {[%clk 0:00:43.4]} 22. Kb1 {[%clk 0:02:10.8]}
22... Qxg5 {[%clk 0:00:45]} 23. Qf1 {[%clk 0:02:05.2]} 23... Bf5 {[%clk
0:00:39.5]} 24. hxg6 {[%clk 0:02:05.9]} 24... hxg6 {[%clk 0:00:38.7]} 25. d6
{[%clk 0:01:57.7]} 25... Rad8 {[%clk 0:00:36.4]} 26. Nd5 {[%clk 0:01:40]} 26...
Bxd3 {[%clk 0:00:24.1]} 27. Qxd3 {[%clk 0:01:38.3]} 27... Rxd6 {[%clk
0:00:25.3]} 28. Qh3 {[%clk 0:01:35.5]} 28... Be5 {[%clk 0:00:22.4]} 29. f4
{[%clk 0:01:35.8]} 29... Qh5 {[%clk 0:00:14.3]} 30. Qxh5 {[%clk 0:01:35.1]}
30... gxh5 {[%clk 0:00:15.6]} 31. fxe5 {[%clk 0:01:37]} 31... Rxe5 {[%clk
0:00:17]} 32. Ne7+ {[%clk 0:01:38.4]} 32... Rxe7 {[%clk 0:00:17.5]} 33. Rxd6
{[%clk 0:01:40.3]} 1-0

[Event "*** Titled Tuesday Blitz"]
[Site "Chess.com"]
[Date "2019.05.07"]
[Round "4"]
[White "Matibar"]
[Black "biostatistician"]
[Result "1-0"]
[WhiteElo "2740"]
[BlackElo "2521"]
[TimeControl "180+2"]
[EndTime "13:54:18 PDT"]
[Termination "Matibar won by resignation"]

1. e4 {[%clk 0:03:01.9]} 1... e6 {[%clk 0:03:00.7]} 2. d4 {[%clk 0:03:00.3]}
2... d5 {[%clk 0:03:02.2]} 3. Nc3 {[%clk 0:03:02.2]} 3... Nc6 {[%clk 0:03:03.4]}
4. Nf3 {[%clk 0:03:00.3]} 4... Nf6 {[%clk 0:03:04.3]} 5. e5 {[%clk 0:03:01.1]}
5... Ne4 {[%clk 0:03:05.7]} 6. Ne2 {[%clk 0:02:44.9]} 6... f6 {[%clk 0:03:03.7]}
7. exf6 {[%clk 0:02:46.8]} 7... Qxf6 {[%clk 0:03:02.3]} 8. Ng3 {[%clk
0:02:48.7]} 8... Bd6 {[%clk 0:03:00.7]} 9. Bd3 {[%clk 0:02:45.4]} 9... Nxg3
{[%clk 0:02:19.2]} 10. hxg3 {[%clk 0:02:44.1]} 10... g6 {[%clk 0:02:09.9]} 11.
Bg5 {[%clk 0:02:36.8]} 11... Qg7 {[%clk 0:02:11]} 12. c3 {[%clk 0:02:30.1]}
12... e5 {[%clk 0:02:08.6]} 13. dxe5 {[%clk 0:02:12.3]} 13... Nxe5 {[%clk
0:02:10.5]} 14. Bb5+ {[%clk 0:02:13.3]} 14... c6 {[%clk 0:01:44.4]} 15. Qxd5
{[%clk 0:02:13.2]} 15... Nf7 {[%clk 0:01:20.4]} 16. Bxc6+ {[%clk 0:02:05.9]}
16... Bd7 {[%clk 0:00:45.9]} 17. Bxd7+ {[%clk 0:02:03.9]} 17... Kxd7 {[%clk
0:00:47.8]} 18. Qxb7+ {[%clk 0:02:05]} 18... Ke6 {[%clk 0:00:47.7]} 19. Qe4+
{[%clk 0:02:00.3]} 19... Kd7 {[%clk 0:00:48.4]} 20. Qa4+ {[%clk 0:02:00.2]}
20... Kc7 {[%clk 0:00:48.9]} 21. Qa5+ {[%clk 0:01:57.2]} 21... Kb7 {[%clk
0:00:48.6]} 22. Qb5+ {[%clk 0:01:58.4]} 22... Kc7 {[%clk 0:00:49.9]} 23. Qa5+
{[%clk 0:01:53]} 23... Kb7 {[%clk 0:00:51]} 24. Be3 {[%clk 0:01:54.6]} 24...
Rhe8 {[%clk 0:00:42.5]} 25. Qb5+ {[%clk 0:01:41.5]} 25... Kc7 {[%clk 0:00:43.3]}
26. Qc4+ {[%clk 0:01:43.1]} 26... Kb7 {[%clk 0:00:44.3]} 27. Qd5+ {[%clk
0:01:40.5]} 27... Kc7 {[%clk 0:00:45.2]} 28. O-O {[%clk 0:01:37.7]} 28... Qf6
{[%clk 0:00:27.7]} 29. Nd4 {[%clk 0:01:36.7]} 29... Re5 {[%clk 0:00:23.6]} 30.
Qxa8 {[%clk 0:01:36.4]} 1-0